[Event "Czech Open-E Teams 2022"]
[Site "Pardubice"]
[Date "2022.07.16"]
[Round "4.4"]
[White "Cozl, David"]
[Black "Studnicka, Tomas"]
[Result "0-1"]
[ECO "A30"]
[WhiteElo "1947"]
[BlackElo "2316"]
[Annotator "ChessBase"]
[PlyCount "70"]
[EventDate "2022.07.14"]
[EventType "team-tourn"]
[EventCountry "CZE"]
[SourceTitle "playchess.com"]
[Source "ChessBase"]
[SourceQuality "1"]
[TimeControl "5400+30"]

1. c4 {[%emt 0:00:04]} c5 {[%emt 0:01:12]} 2. Nf3 {[%emt 0:00:20]} Nc6 {[%emt 0:00:01]} 3. g3 {[%emt 0:00:11]} Nf6 {[%emt 0:01:17]} 4. Bg2 {[%emt 0:00:08]} d5 {[%emt 0:00:01]} 5. cxd5 {[%emt 0:00:12]} Nxd5 {[%emt 0:00:02]} 6. O-O {[%emt 0:00:11]} e5 {[%emt 0:00:02]} 7. Nc3 {[%emt 0:00:11]} Nc7 {[%emt 0:01:09]} 8. d3 {[%emt 0:03:10]} Be7 {[%emt 0:00:04]} 9. Bd2 {[%emt 0:00:26]} O-O {[%emt 0:00:14]} 10. Rc1 {[%emt 0:00:13]} f6 {[%emt 0:03:37]} 11. Na4 {[%emt 0:10:35]} Na6 {[%emt 0:10:03]} 12. Re1 {[%emt 0:26:39]} Be6 {[%emt 0:02:15]} 13. Nc3 {[%emt 0:03:32]} Qd7 {[%emt 0:11:01]} 14. Qa4 {[%emt 0:03:40]} Rfd8 {[%emt 0:01:52]} 15. Be3 {[%emt 0:09:20]} Bf8 {[%emt 0:09:03]} 16. Ne4 {[%emt 0:02:28]} Qf7 {[%emt 0:06:49]} 17. Nxc5 {[%emt 0:02:21]} Nxc5 {[%emt 0:00:09]} 18. Bxc5 {[%emt 0:00:16]} Bxa2 {[%emt 0:00:14]} 19. Nd2 {[%emt 0:01:14]} Bd5 {[%emt 0:01:59]} 20. Bxf8 {[%emt 0:08:05]} Kxf8 {[%emt 0:00:29]} 21. Bxd5 {[%emt 0:00:39]} Rxd5 {[%emt 0:01:30]} 22. Ne4 {[%emt 0:03:13]} Kg8 {[%emt 0:15:22]} 23. Qc4 {[%emt 0:04:26]} Rad8 {[%emt 0:08:22]} 24. b4 {[%emt 0:01:47]} Nd4 {[%emt 0:05:10]} 25. Ra1 {[%emt 0:05:19]} b6 {[%emt 0:04:29]} 26. Kf1 {[%emt 0:00:21]} a5 {[%emt 0:05:35]} 27. Nc3 {[%emt 0:01:09]} b5 {[%emt 0:04:22]} 28. Qa2 {[%emt 0:03:20]} axb4 {[%emt 0:00:15]} 29. Nxd5 {[%emt 0:00:55]} b3 {[%emt 0:00:01]} 30. Qa5 {[%emt 0:00:57]} Qxd5 {[%emt 0:00:08]} 31. e4 {[%emt 0:01:14]} Qd7 {[%emt 0:00:28]} 32. Red1 {[%emt 0:04:39]} Qh3+ {[%emt 0:01:30]} 33. Ke1 {[%emt 0:00:02]} Rc8 {[%emt 0:00:21]} 34. Rab1 {[%emt 0:01:24]} Qxh2 {[%emt 0:01:01]} 35. Rb2 {[%emt 0:00:58]} Qg1+ {[%emt 0:00:29]} 0-1

[Event "Czech Open-E Teams 2022"]
[Site "Pardubice"]
[Date "2022.07.16"]
[Round "4.5"]
[White "Cerveny, Martin"]
[Black "Slampa, Jan"]
[Result "1-0"]
[ECO "D11"]
[WhiteElo "2396"]
[BlackElo "2254"]
[Annotator "ChessBase"]
[PlyCount "81"]
[EventDate "2022.07.14"]
[EventType "team-tourn"]
[EventCountry "CZE"]
[SourceTitle "playchess.com"]
[Source "ChessBase"]
[SourceQuality "1"]
[TimeControl "5400+30"]

1. d4 {[%emt 0:00:11]} d5 {[%emt 0:00:00]} 2. c4 {[%emt 0:00:06]} c6 {[%emt 0:00:22]} 3. Nf3 {[%emt 0:00:30]} Nf6 {[%emt 0:00:06]} 4. e3 {[%emt 0:00:00]} a6 {[%emt 0:01:41]} 5. a4 {[%emt 0:02:47]} e6 {[%emt 0:02:43]} 6. Nc3 {[%emt 0:05:00]} c5 7. cxd5 {[%emt 0:00:00]} exd5 {[%emt 0:06:17]} 8. Be2 {[%emt 0:00:04]} Nc6 {[%emt 0:00:21]} 9. O-O {[%emt 0:00:16]} cxd4 {[%emt 0:08:03]} 10. exd4 {[%emt 0:02:18]} Be7 {[%emt 0:00:26]} 11. Ne5 {[%emt 0:06:07]} O-O {[%emt 0:01:09]} 12. Bg5 {[%emt 0:06:58]} h6 {[%emt 0:04:23]} 13. Bh4 {[%emt 0:01:05]} Bf5 {[%emt 0:16:34]} 14. Nxc6 {[%emt 0:01:07]} bxc6 {[%emt 0:00:08]} 15. a5 {[%emt 0:00:06]} Nd7 {[%emt 0:13:43]} 16. Bxe7 {[%emt 0:01:27]} Qxe7 {[%emt 0:00:02]} 17. Qa4 {[%emt 0:09:06]} Qd6 {[%emt 0:01:03]} 18. Rfc1 {[%emt 0:00:09]} Rfb8 {[%emt 0:04:04]} 19. Nd1 {[%emt 0:10:03]} c5 {[%emt 0:00:30]} 20. Ne3 {[%emt 0:03:28]} Be6 {[%emt 0:03:29]} 21. Qa3 {[%emt 0:00:28]} Rc8 {[%emt 0:04:29]} 22. g3 {[%emt 0:00:33]} Qf8 {[%emt 0:02:13]} 23. dxc5 {[%emt 0:04:26]} Nxc5 {[%emt 0:06:55]} 24. b4 {[%emt 0:00:13]} Ne4 {[%emt 0:01:23]} 25. Rxc8 {[%emt 0:00:24]} Qxc8 {[%emt 0:01:15]} 26. Qd3 {[%emt 0:01:14]} Qd8 {[%emt 0:03:27]} 27. Qd4 {[%emt 0:02:17]} Qd6 {[%emt 0:03:32]} 28. Bf3 {[%emt 0:02:46]} Rb8 {[%emt 0:04:44]} 29. Rb1 {[%emt 0:00:47]} Ng5 {[%emt 0:01:15]} 30. Bg2 {[%emt 0:00:58]} Rb5 {[%emt 0:05:26]} 31. f4 {[%emt 0:05:15]} Nh3+ {[%emt 0:00:58]} 32. Kf1 {[%emt 0:00:08]} Qd7 {[%emt 0:01:59]} 33. Bf3 {[%emt 0:00:13]} Qc8 {[%emt 0:02:03]} 34. Be2 {[%emt 0:04:14]} Rb8 {[%emt 0:01:08]} 35. Kg2 {[%emt 0:00:07]} g5 {[%emt 0:00:26]} 36. Bd3 {[%emt 0:04:09]} gxf4 37. gxf4 {[%emt 0:00:08]} Qc7 {[%emt 0:01:52]} 38. Rf1 {[%emt 0:00:09]} Qd6 {[%emt 0:00:46]} 39. b5 {[%emt 0:00:07]} axb5 {[%emt 0:00:18]} 40. f5 {[%emt 0:01:17]} Ng5 {[%emt 0:00:35]} 41. h4 {[%emt 0:00:24]} 1-0

[Event "Czech Open-E Teams 2022"]
[Site "Pardubice"]
[Date "2022.07.16"]
[Round "4.6"]
[White "Jedlicka, Ales"]
[Black "Szotkowski, Jakub"]
[Result "0-1"]
[ECO "D15"]
[WhiteElo "2216"]
[BlackElo "2344"]
[Annotator "ChessBase"]
[PlyCount "54"]
[EventDate "2022.07.14"]
[EventType "team-tourn"]
[EventCountry "CZE"]
[SourceTitle "playchess.com"]
[Source "ChessBase"]
[SourceQuality "1"]
[TimeControl "5400+30"]

1. d4 {[%emt 0:00:12]} Nf6 {[%emt 0:00:35]} 2. Nf3 {[%emt 0:00:24]} d5 {[%emt 0:02:23]} 3. c4 {[%emt 0:00:33]} c6 {[%emt 0:00:05]} 4. Nc3 {[%emt 0:00:24]} a6 {[%emt 0:00:13]} 5. cxd5 {[%emt 0:01:07]} cxd5 {[%emt 0:00:06]} 6. Bf4 {[%emt 0:00:12]} Nc6 {[%emt 0:00:22]} 7. Rc1 {[%emt 0:00:25]} e6 {[%emt 0:10:17]} 8. e3 {[%emt 0:01:44]} Bd6 {[%emt 0:04:08]} 9. Bg3 {[%emt 0:01:37]} O-O {[%emt 0:04:44]} 10. Bd3 {[%emt 0:00:19]} Re8 {[%emt 0:05:29]} 11. a3 {[%emt 0:06:58]} e5 {[%emt 0:10:04]} 12. dxe5 {[%emt 0:00:36]} Nxe5 {[%emt 0:00:06]} 13. Nxe5 {[%emt 0:00:28]} Bxe5 {[%emt 0:00:30]} 14. Bxe5 {[%emt 0:00:16]} Rxe5 {[%emt 0:00:06]} 15. Be2 {[%emt 0:07:40]} h5 {[%emt 0:13:40]} 16. Qd4 {[%emt 0:02:51]} Qd6 {[%emt 0:01:23]} 17. Bf3 {[%emt 0:05:09]} Bg4 {[%emt 0:01:15]} 18. Bxg4 {[%emt 0:04:49]} hxg4 {[%emt 0:05:35]} 19. Ne2 {[%emt 0:10:46]} Re4 {[%emt 0:05:54]} 20. Qc5 {[%emt 0:00:31]} Qe5 {[%emt 0:05:01]} 21. Ng3 {[%emt 0:02:55]} Qxb2 {[%emt 0:00:56]} 22. Nxe4 {[%emt 0:00:24]} Nxe4 {[%emt 0:00:06]} 23. Qc2 {[%emt 0:00:31]} Qxa3 {[%emt 0:01:13]} 24. O-O {[%emt 0:01:01]} Qe7 {[%emt 0:13:52]} 25. Qc7 {[%emt 0:04:21]} Re8 {[%emt 0:00:32]} 26. Qf4 {[%emt 0:09:28]} Qe6 {[%emt 0:01:36]} 27. Rc7 {[%emt 0:01:37]} g5 {[%emt 0:00:28]} 0-1

[Event "Czech Open-E Teams 2022"]
[Site "Pardubice"]
[Date "2022.07.16"]
[Round "4.7"]
[White "Chytilek, Roman"]
[Black "Kovar, Vojtech"]
[Result "1/2-1/2"]
[ECO "A06"]
[WhiteElo "2317"]
[BlackElo "2191"]
[Annotator "ChessBase"]
[PlyCount "28"]
[EventDate "2022.07.14"]
[EventType "team-tourn"]
[EventCountry "CZE"]
[SourceTitle "playchess.com"]
[Source "ChessBase"]
[SourceQuality "1"]
[TimeControl "5400+30"]

1. Nf3 {[%emt 0:00:30]} d5 {[%emt 0:30:49]} 2. e3 {[%emt 0:01:38]} Nf6 {[%emt 0:02:17]} 3. c4 {[%emt 0:00:57]} e6 {[%emt 0:01:20]} 4. Nc3 {[%emt 0:00:56]} Be7 {[%emt 0:03:37]} 5. d4 {[%emt 0:05:02]} O-O {[%emt 0:00:09]} 6. a3 {[%emt 0:07:23]} b6 {[%emt 0:03:55]} 7. cxd5 exd5 {[%emt 0:00:12]} 8. Bd3 {[%emt 0:01:47]} Bb7 {[%emt 0:02:22]} 9. Ne5 {[%emt 0:00:13]} Nbd7 {[%emt 0:00:08]} 10. Qc2 {[%emt 0:17:20]} c5 {[%emt 0:06:50]} 11. f4 {[%emt 0:09:43]} cxd4 {[%emt 0:21:46]} 12. exd4 {[%emt 0:00:33]} Nxe5 {[%emt 0:00:08]} 13. fxe5 {[%emt 0:12:24]} Ne4 {[%emt 0:04:32]} 14. O-O {[%emt 0:06:59]} Rc8 {[%emt 0:06:10]} 1/2-1/2

[Event "Czech Open-E Teams 2022"]
[Site "Pardubice"]
[Date "2022.07.16"]
[Round "4.8"]
[White "Vala, Filip"]
[Black "Vyskocil, Neklan"]
[Result "0-1"]
[ECO "E12"]
[WhiteElo "2139"]
[BlackElo "2286"]
[Annotator "ChessBase"]
[PlyCount "118"]
[EventDate "2022.07.14"]
[EventType "team-tourn"]
[EventCountry "CZE"]
[SourceTitle "playchess.com"]
[Source "ChessBase"]
[SourceQuality "1"]
[TimeControl "5400+30"]

1. d4 {[%emt 0:00:03]} Nf6 {[%emt 0:06:41]} 2. Nf3 {[%emt 0:02:34]} e6 {[%emt 0:00:23]} 3. c4 {[%emt 0:00:05]} b6 {[%emt 0:00:37]} 4. a3 {[%emt 0:00:11]} Bb7 {[%emt 0:00:42]} 5. Nc3 {[%emt 0:00:09]} d5 {[%emt 0:00:40]} 6. cxd5 {[%emt 0:07:13]} Nxd5 {[%emt 0:00:36]} 7. Qc2 {[%emt 0:11:34]} Nxc3 {[%emt 0:00:49]} 8. bxc3 {[%emt 0:00:57]} Nd7 {[%emt 0:01:24]} 9. e4 {[%emt 0:00:56]} c5 {[%emt 0:00:43]} 10. Bd3 {[%emt 0:03:02]} Qc7 {[%emt 0:00:10]} 11. O-O {[%emt 0:13:00]} Be7 {[%emt 0:02:38]} 12. Qe2 {[%emt 0:10:58]} Rc8 {[%emt 0:08:13]} 13. Bg5 {[%emt 0:08:15]} Bxg5 {[%emt 0:01:48]} 14. Nxg5 {[%emt 0:00:39]} h6 {[%emt 0:02:30]} 15. Nh3 {[%emt 0:14:26]} e5 {[%emt 0:04:00]} 16. Bb5 {[%emt 0:04:54]} O-O {[%emt 0:09:48]} 17. Bxd7 {[%emt 0:04:22]} Qxd7 {[%emt 0:00:02]} 18. d5 {[%emt 0:02:18]} c4 {[%emt 0:02:29]} 19. f4 {[%emt 0:03:56]} exf4 {[%emt 0:14:30]} 20. Nxf4 {[%emt 0:00:18]} Qe7 {[%emt 0:02:00]} 21. Kh1 {[%emt 0:06:07]} Rfe8 {[%emt 0:02:24]} 22. Rae1 {[%emt 0:03:21]} Qe5 {[%emt 0:01:55]} 23. Qf3 {[%emt 0:01:20]} Rcd8 {[%emt 0:01:58]} 24. Ng6 fxg6 {[%emt 0:03:44]} 25. Qf7+ {[%emt 0:01:18]} Kh7 {[%emt 0:00:29]} 26. Qxb7 {[%emt 0:00:04]} Rf8 {[%emt 0:05:16]} 27. Rf7 {[%emt 0:01:11]} Rxf7 {[%emt 0:02:18]} 28. Qxf7 {[%emt 0:00:04]} Qxc3 {[%emt 0:00:26]} 29. Rf1 {[%emt 0:00:04]} Qe5 {[%emt 0:00:41]} 30. Qf3 {[%emt 0:01:32]} Re8 {[%emt 0:00:43]} 31. Rd1 {[%emt 0:00:36]} Qxe4 {[%emt 0:00:52]} 32. Qxe4 {[%emt 0:00:16]} Rxe4 {[%emt 0:00:05]} 33. d6 {[%emt 0:00:01]} Re8 {[%emt 0:00:28]} 34. Kg1 {[%emt 0:00:08]} Kg8 {[%emt 0:07:10]} 35. Rc1 {[%emt 0:00:14]} b5 {[%emt 0:00:37]} 36. a4 {[%emt 0:00:26]} a6 {[%emt 0:00:34]} 37. axb5 {[%emt 0:00:49]} axb5 {[%emt 0:00:02]} 38. Rb1 {[%emt 0:00:04]} Rd8 {[%emt 0:01:04]} 39. Rxb5 {[%emt 0:00:04]} Rxd6 {[%emt 0:00:08]} 40. Rc5 {[%emt 0:00:02]} Rd4 {[%emt 0:03:46]} 41. Rc7 {[%emt 0:00:37]} g5 {[%emt 0:01:08]} 42. Kf2 {[%emt 0:00:13]} Kh7 {[%emt 0:06:04]} 43. Ke3 {[%emt 0:01:28]} Rh4 {[%emt 0:00:18]} 44. h3 {[%emt 0:01:17]} Kg6 {[%emt 0:00:16]} 45. Rc6+ {[%emt 0:00:15]} Kf5 {[%emt 0:01:54]} 46. Rc7 {[%emt 0:00:34]} Re4+ {[%emt 0:00:17]} 47. Kf3 {[%emt 0:00:11]} Rd4 {[%emt 0:02:12]} 48. Ke3 {[%emt 0:01:11]} Rd3+ {[%emt 0:01:01]} 49. Ke2 {[%emt 0:00:18]} Rc3 {[%emt 0:00:28]} 50. Rxg7 {[%emt 0:00:51]} Kf4 {[%emt 0:00:21]} 51. Kf2 {[%emt 0:01:00]} Rc2+ {[%emt 0:00:06]} 52. Kf1 {[%emt 0:00:33]} Kg3 {[%emt 0:00:21]} 53. Rh7 {[%emt 0:00:13]} Rf2+ {[%emt 0:03:29]} 54. Ke1 {[%emt 0:00:02]} Rf6 {[%emt 0:01:30]} 55. Rc7 {[%emt 0:01:05]} Kxg2 {[%emt 0:00:27]} 56. h4 {[%emt 0:00:32]} Rf4 {[%emt 0:00:35]} 57. hxg5 {[%emt 0:00:15]} hxg5 {[%emt 0:00:03]} 58. Ke2 {[%emt 0:00:09]} Re4+ {[%emt 0:00:36]} 59. Kd2 {[%emt 0:00:03]} g4 {[%emt 0:00:25]} 0-1

[Event "Czech Open-E Teams 2022"]
[Site "Pardubice"]
[Date "2022.07.16"]
[Round "4.9"]
[White "Obsivac, Josef"]
[Black "Stalmach, Richard"]
[Result "1-0"]
[ECO "E70"]
[WhiteElo "2272"]
[BlackElo "2363"]
[Annotator "ChessBase"]
[PlyCount "123"]
[EventDate "2022.07.14"]
[EventType "team-tourn"]
[EventCountry "CZE"]
[SourceTitle "playchess.com"]
[Source "ChessBase"]
[SourceQuality "1"]
[TimeControl "5400+30"]

1. d4 {[%emt 0:00:04]} Nf6 {[%emt 0:00:23]} 2. c4 {[%emt 0:00:06]} g6 {[%emt 0:00:06]} 3. Nc3 {[%emt 0:00:10]} Bg7 {[%emt 0:00:05]} 4. e4 {[%emt 0:00:12]} O-O {[%emt 0:00:11]} 5. Be3 {[%emt 0:01:56]} d6 {[%emt 0:00:27]} 6. h3 {[%emt 0:00:19]} c5 {[%emt 0:00:51]} 7. d5 {[%emt 0:00:56]} e6 {[%emt 0:00:38]} 8. Bd3 {[%emt 0:00:31]} Re8 {[%emt 0:02:47]} 9. Nf3 {[%emt 0:01:12]} exd5 10. exd5 {[%emt 0:00:38]} Bh6 {[%emt 0:01:43]} 11. O-O {[%emt 0:00:28]} Bxe3 {[%emt 0:00:50]} 12. fxe3 {[%emt 0:02:26]} Nbd7 {[%emt 0:04:27]} 13. e4 {[%emt 0:12:33]} Ne5 {[%emt 0:02:00]} 14. Nxe5 {[%emt 0:00:29]} Rxe5 {[%emt 0:00:08]} 15. Qf3 {[%emt 0:01:57]} Kg7 {[%emt 0:05:13]} 16. Rf2 {[%emt 0:03:50]} Bd7 {[%emt 0:00:07]} 17. Raf1 {[%emt 0:01:00]} Ng8 {[%emt 0:00:07]} 18. Qxf7+ {[%emt 0:00:41]} Kh8 {[%emt 0:00:03]} 19. Qf4 {[%emt 0:06:33]} a6 {[%emt 0:04:52]} 20. a4 {[%emt 0:05:44]} Qe7 {[%emt 0:05:01]} 21. Be2 {[%emt 0:06:47]} Rd8 {[%emt 0:10:25]} 22. Bg4 {[%emt 0:09:39]} Qg7 {[%emt 0:02:46]} 23. Bxd7 {[%emt 0:01:22]} Rxd7 {[%emt 0:01:07]} 24. Qf8 {[%emt 0:01:38]} Qxf8 {[%emt 0:01:44]} 25. Rxf8 {[%emt 0:00:03]} Kg7 {[%emt 0:00:05]} 26. a5 {[%emt 0:10:49]} Nh6 {[%emt 0:12:13]} 27. Rb8 {[%emt 0:00:53]} Nf7 {[%emt 0:00:09]} 28. Rf4 {[%emt 0:01:25]} Ree7 {[%emt 0:04:33]} 29. b3 {[%emt 0:01:52]} Ne5 {[%emt 0:00:18]} 30. Na4 {[%emt 0:07:47]} Nf7 {[%emt 0:18:14]} 31. Nb6 {[%emt 0:06:44]} Rc7 {[%emt 0:00:02]} 32. Rc8 {[%emt 0:00:48]} Ne5 {[%emt 0:01:50]} 33. Rxc7 {[%emt 0:02:10]} Rxc7 {[%emt 0:00:03]} 34. Kf1 {[%emt 0:00:29]} Nd3 {[%emt 0:03:07]} 35. Rf3 {[%emt 0:00:23]} Ne5 {[%emt 0:00:03]} 36. Re3 {[%emt 0:03:50]} Rf7+ {[%emt 0:00:04]} 37. Ke2 {[%emt 0:00:23]} Rf6 {[%emt 0:00:05]} 38. Na4 {[%emt 0:00:56]} g5 {[%emt 0:13:12]} 39. Nb2 {[%emt 0:00:11]} Rg6 {[%emt 0:02:06]} 40. Nd3 {[%emt 0:01:38]} Kf6 {[%emt 0:00:03]} 41. Nf2 {[%emt 0:03:02]} h5 {[%emt 0:00:50]} 42. Kd2 {[%emt 0:01:36]} g4 {[%emt 0:01:06]} 43. h4 {[%emt 0:02:00]} Rg8 {[%emt 0:01:37]} 44. Nh1 {[%emt 0:00:48]} Ng6 {[%emt 0:00:03]} 45. Ng3 {[%emt 0:00:51]} Nxh4 {[%emt 0:00:06]} 46. Nxh5+ {[%emt 0:01:31]} Ke5 {[%emt 0:01:59]} 47. g3 {[%emt 0:01:36]} Nf3+ {[%emt 0:03:12]} 48. Kc3 {[%emt 0:00:12]} Rh8 {[%emt 0:00:32]} 49. Nf4 {[%emt 0:00:27]} Rh1 {[%emt 0:00:03]} 50. Nd3+ {[%emt 0:00:17]} Kf6 {[%emt 0:00:08]} 51. Nf2 {[%emt 0:00:34]} Rc1+ {[%emt 0:03:36]} 52. Kb2 {[%emt 0:00:11]} Rf1 {[%emt 0:00:02]} 53. Nxg4+ {[%emt 0:00:12]} Kg5 {[%emt 0:00:02]} 54. e5 {[%emt 0:00:23]} dxe5 {[%emt 0:01:08]} 55. Nxe5 {[%emt 0:00:17]} Rf2+ {[%emt 0:00:02]} 56. Kc3 {[%emt 0:02:02]} Nd4 {[%emt 0:01:18]} 57. Nd7 {[%emt 0:00:51]} Kf5 {[%emt 0:00:37]} 58. Nxc5 {[%emt 0:00:51]} Ne2+ {[%emt 0:00:03]} 59. Kb4 {[%emt 0:00:00]} Nd4 {[%emt 0:00:10]} 60. Rd3 {[%emt 0:00:30]} Nc2+ {[%emt 0:00:28]} 61. Kc3 {[%emt 0:00:31]} Ne1 {[%emt 0:00:16]} 62. Rd2 {[%emt 0:00:34]} 1-0

[Event "Czech Open-E Teams 2022"]
[Site "Pardubice"]
[Date "2022.07.16"]
[Round "4.10"]
[White "Mica, Marek"]
[Black "Zeman, Matyas"]
[Result "1/2-1/2"]
[ECO "E01"]
[WhiteElo "2304"]
[BlackElo "2262"]
[Annotator "ChessBase"]
[PlyCount "120"]
[EventDate "2022.07.14"]
[EventType "team-tourn"]
[EventCountry "CZE"]
[SourceTitle "playchess.com"]
[Source "ChessBase"]
[SourceQuality "1"]
[TimeControl "5400+30"]

1. d4 {[%emt 0:00:04]} Nf6 {[%emt 0:00:40]} 2. c4 {[%emt 0:00:08]} e6 {[%emt 0:00:07]} 3. g3 {[%emt 0:00:08]} d5 {[%emt 0:00:19]} 4. Bg2 {[%emt 0:00:10]} Bb4+ {[%emt 0:00:32]} 5. Nd2 {[%emt 0:00:30]} O-O {[%emt 0:00:13]} 6. Ngf3 {[%emt 0:00:14]} b6 {[%emt 0:00:15]} 7. O-O {[%emt 0:00:30]} Bb7 {[%emt 0:00:08]} 8. Ne5 {[%emt 0:00:41]} Nbd7 {[%emt 0:11:17]} 9. Qa4 {[%emt 0:01:34]} Bd6 {[%emt 0:01:56]} 10. Nxd7 {[%emt 0:00:25]} Qxd7 {[%emt 0:01:57]} 11. Qxd7 {[%emt 0:00:09]} Nxd7 {[%emt 0:00:02]} 12. cxd5 {[%emt 0:00:08]} Bxd5 {[%emt 0:06:30]} 13. e4 {[%emt 0:05:17]} Bb7 {[%emt 0:00:04]} 14. Rd1 {[%emt 0:01:07]} Be7 {[%emt 0:11:36]} 15. Nc4 {[%emt 0:03:19]} Nf6 {[%emt 0:00:29]} 16. Bg5 {[%emt 0:05:48]} Rfe8 {[%emt 0:03:02]} 17. Bxf6 {[%emt 0:17:51]} gxf6 {[%emt 0:08:34]} 18. Rac1 {[%emt 0:00:51]} Rad8 {[%emt 0:01:10]} 19. Ne3 {[%emt 0:11:03]} c5 {[%emt 0:06:21]} 20. d5 {[%emt 0:00:59]} b5 {[%emt 0:04:13]} 21. b3 {[%emt 0:01:30]} Bf8 {[%emt 0:03:52]} 22. Bf1 {[%emt 0:03:40]} a6 {[%emt 0:00:23]} 23. a4 {[%emt 0:00:53]} exd5 {[%emt 0:00:41]} 24. exd5 {[%emt 0:01:18]} Bh6 {[%emt 0:00:15]} 25. Ng4 {[%emt 0:13:05]} Bxc1 {[%emt 0:00:08]} 26. Nxf6+ {[%emt 0:00:05]} Kf8 {[%emt 0:01:05]} 27. Rxc1 {[%emt 0:14:05]} Re5 {[%emt 0:08:10]} 28. axb5 {[%emt 0:00:30]} axb5 {[%emt 0:01:43]} 29. Rxc5 {[%emt 0:02:24]} Rf5 {[%emt 0:02:00]} 30. Rxb5 {[%emt 0:09:39]} Ba6 {[%emt 0:01:48]} 31. Rb6 {[%emt 0:00:48]} Bxf1 {[%emt 0:00:03]} 32. Kxf1 {[%emt 0:00:12]} Kg7 {[%emt 0:00:10]} 33. Ng4 {[%emt 0:00:49]} Rfxd5 {[%emt 0:00:05]} 34. Ne3 {[%emt 0:00:17]} Rd2 {[%emt 0:04:02]} 35. Nf5+ {[%emt 0:02:43]} Kf8 {[%emt 0:01:09]} 36. Kg2 {[%emt 0:00:39]} Re2 {[%emt 0:00:35]} 37. g4 {[%emt 0:00:59]} Re6 {[%emt 0:02:40]} 38. Rb7 {[%emt 0:00:16]} Rd2 {[%emt 0:01:40]} 39. Kg3 {[%emt 0:00:24]} Re5 {[%emt 0:01:07]} 40. f3 {[%emt 0:01:00]} h5 {[%emt 0:02:20]} 41. Kf4 {[%emt 0:03:20]} Re6 {[%emt 0:00:39]} 42. h4 {[%emt 0:00:29]} hxg4 {[%emt 0:00:08]} 43. fxg4 {[%emt 0:00:52]} Rf2+ {[%emt 0:01:46]} 44. Kg3 {[%emt 0:00:42]} Rd2 {[%emt 0:02:57]} 45. h5 {[%emt 0:00:09]} Kg8 {[%emt 0:00:31]} 46. g5 {[%emt 0:01:00]} Rd5 {[%emt 0:01:06]} 47. Kf4 {[%emt 0:00:29]} Rc5 {[%emt 0:02:04]} 48. Rb8+ {[%emt 0:00:38]} Kh7 {[%emt 0:00:06]} 49. Rb7 {[%emt 0:00:23]} Kg8 {[%emt 0:00:01]} 50. g6 {[%emt 0:00:43]} fxg6 {[%emt 0:00:19]} 51. hxg6 {[%emt 0:00:25]} Rf6 {[%emt 0:00:20]} 52. Rb8+ {[%emt 0:00:10]} Rf8 {[%emt 0:00:03]} 53. Rxf8+ {[%emt 0:00:10]} Kxf8 {[%emt 0:00:01]} 54. Nd4 {[%emt 0:01:10]} Rc1 {[%emt 0:00:47]} 55. Kg5 {[%emt 0:00:23]} Ke7 {[%emt 0:04:53]} 56. Nf5+ {[%emt 0:00:26]} Ke6 {[%emt 0:00:06]} 57. Ng7+ {[%emt 0:00:38]} Ke5 {[%emt 0:00:50]} 58. Nh5 {[%emt 0:00:32]} Rg1+ {[%emt 0:00:23]} 59. Kh6 {[%emt 0:00:09]} Kd4 {[%emt 0:00:24]} 60. Nf4 {[%emt 0:00:22]} Rxg6+ {[%emt 0:00:20]} 1/2-1/2

[Event "Czech Open-E Teams 2022"]
[Site "Pardubice"]
[Date "2022.07.16"]
[Round "4.11"]
[White "Skacelik, Petr"]
[Black "Frank, Adam"]
[Result "1/2-1/2"]
[ECO "A41"]
[WhiteElo "2170"]
[BlackElo "2313"]
[Annotator "ChessBase"]
[PlyCount "89"]
[EventDate "2022.07.14"]
[EventType "team-tourn"]
[EventCountry "CZE"]
[SourceTitle "playchess.com"]
[Source "ChessBase"]
[SourceQuality "1"]
[TimeControl "5400+30"]

1. d4 {[%emt 0:00:01]} d6 {[%emt 0:00:06]} 2. c4 {[%emt 0:00:37]} e5 {[%emt 0:00:04]} 3. Nf3 {[%emt 0:00:15]} Nd7 {[%emt 0:00:05]} 4. Nc3 {[%emt 0:00:08]} g6 {[%emt 0:00:03]} 5. e4 {[%emt 0:01:29]} Bg7 {[%emt 0:00:05]} 6. Be3 {[%emt 0:00:07]} Ngf6 {[%emt 0:01:04]} 7. h3 {[%emt 0:00:06]} exd4 {[%emt 0:03:28]} 8. Nxd4 {[%emt 0:00:19]} O-O {[%emt 0:00:03]} 9. Be2 {[%emt 0:00:38]} Re8 {[%emt 0:00:06]} 10. Qc2 {[%emt 0:02:18]} Nc5 {[%emt 0:01:04]} 11. f3 {[%emt 0:00:14]} Nh5 {[%emt 0:09:17]} 12. O-O-O {[%emt 0:01:37]} Ng3 {[%emt 0:00:52]} 13. Rhe1 {[%emt 0:00:20]} Bd7 {[%emt 0:07:00]} 14. Qd2 {[%emt 0:07:48]} a6 {[%emt 0:18:26]} 15. Kb1 {[%emt 0:02:53]} Qb8 {[%emt 0:02:07]} 16. Nb3 {[%emt 0:07:18]} Nxb3 {[%emt 0:06:59]} 17. axb3 {[%emt 0:00:06]} a5 {[%emt 0:01:56]} 18. Bd4 {[%emt 0:05:32]} Bc6 {[%emt 0:01:08]} 19. Bxg7 {[%emt 0:06:21]} Kxg7 {[%emt 0:00:02]} 20. Qd4+ {[%emt 0:00:36]} f6 {[%emt 0:00:23]} 21. Bd3 {[%emt 0:00:19]} Qa7 {[%emt 0:00:14]} 22. Qxa7 {[%emt 0:03:33]} Rxa7 {[%emt 0:00:03]} 23. Ne2 {[%emt 0:00:13]} Nxe2 {[%emt 0:00:04]} 24. Rxe2 {[%emt 0:00:05]} Raa8 {[%emt 0:01:23]} 25. Kc2 {[%emt 0:00:18]} Re7 {[%emt 0:05:56]} 26. Kc3 {[%emt 0:00:44]} Rae8 {[%emt 0:02:57]} 27. Kd4 {[%emt 0:16:01]} f5 {[%emt 0:01:22]} 28. Rde1 {[%emt 0:00:06]} f4 {[%emt 0:00:08]} 29. e5 {[%emt 0:04:07]} dxe5+ {[%emt 0:05:55]} 30. Rxe5 {[%emt 0:00:22]} Rd8+ {[%emt 0:00:12]} 31. Kc3 {[%emt 0:00:20]} Red7 {[%emt 0:00:04]} 32. Re7+ {[%emt 0:05:59]} Kf8 {[%emt 0:08:47]} 33. Rxd7 {[%emt 0:01:00]} Rxd7 {[%emt 0:00:03]} 34. Be4 {[%emt 0:01:50]} Re7 {[%emt 0:00:49]} 35. Kd4 {[%emt 0:00:29]} Kg7 {[%emt 0:00:50]} 36. Ra1 {[%emt 0:01:12]} Bxe4 {[%emt 0:00:27]} 37. fxe4 {[%emt 0:00:05]} b6 {[%emt 0:00:33]} 38. Rf1 {[%emt 0:00:31]} g5 {[%emt 0:00:00]} 39. Kd5 {[%emt 0:03:42]} Kg6 {[%emt 0:08:54]} 40. Rf3 {[%emt 0:04:46]} h5 {[%emt 0:10:26]} 41. h4 {[%emt 0:09:48]} Rd7+ {[%emt 0:00:08]} 42. Kc6 {[%emt 0:00:46]} Re7 {[%emt 0:00:04]} 43. Kd5 {[%emt 0:01:13]} Rd7+ {[%emt 0:00:03]} 44. Kc6 {[%emt 0:00:25]} Re7 {[%emt 0:00:02]} 45. Kd5 {[%emt 0:02:29]} 1/2-1/2